bitfinex/quotes_BTCUSD_20240820
["timestamp","ask_amount","ask_price","bid_price","bid_amount"]
[1724170176089,4.90853417,58875.0,58872.0,1.49793037]
[1724170176318,0.946,58875.0,58872.0,1.69283037]
[1724170176532,0.976,58875.0,58872.0,1.69283037]
[1724170176744,0.976,58875.0,58872.0,1.49793037]
[1724170179335,0.2,58875.0,58872.0,1.49793037]
[1724170179565,0.6,58881.0,58875.0,0.03405]
[1724170180419,0.6,58881.0,58877.0,0.03405]
[1724170180420,0.2,58881.0,58877.0,0.03405]
[1724170182564,0.00424627,58880.0,58878.0,0.03405]
[1724170182982,0.2,58881.0,58878.0,0.03405]
[1724170183188,0.43,58882.0,58878.0,0.02805]
[1724170184229,0.002,58881.0,58878.0,0.02805]
[1724170184640,0.00424655,58880.0,58878.0,0.02805]
[1724170185259,0.20424655,58880.0,58878.0,0.02805]
[1724170185464,0.2,58880.0,58878.0,0.02805]
[1724170186087,0.2042466,58880.0,58874.0,0.034873]
[1724170186296,0.00424669,58879.0,58874.0,0.034873]
[1724170186742,0.43,58875.0,58874.0,0.000823]
[1724170187474,0.43,58875.0,58874.0,0.002823]
[1724170187707,0.43,58875.0,58874.0,0.000823]
[1724170188680,0.432,58875.0,58874.0,0.000823]
[1724170190438,0.44765771,58875.0,58874.0,0.000823]
[1724170190651,0.44765688,58875.0,58874.0,0.000823]
[1724170190859,0.44565688,58875.0,58874.0,0.000823]
[1724170191063,0.44765688,58875.0,58874.0,0.000823]
[1724170191474,0.44565688,58875.0,58874.0,0.000823]
[1724170191923,0.41565688,58875.0,58874.0,0.405823]
[1724170192144,0.4,58875.0,58874.0,0.405823]
[1724170192379,0.2,58880.0,58874.0,0.405823]
[1724170192380,0.2,58880.0,58874.0,0.52908046]
[1724170192585,0.2,58880.0,58876.0,0.03405]
[1724170193227,0.01565831,58879.0,58876.0,0.03405]
[1724170193442,0.346,58890.0,58875.0,0.1829]
[1724170193443,0.05871873,58899.0,58880.0,0.42555]
[1724170193657,0.49229154,58894.0,58883.0,0.3915]
[1724170193872,0.2,58901.0,58881.0,0.369045]
[1724170193873,0.0156524,58893.0,58888.0,0.03405]
[1724170194086,0.0156524,58893.0,58881.0,0.1]
[1724170194087,0.69229154,58901.0,58890.0,0.03405]
[1724170194379,0.01564918,58900.0,58890.0,0.03405]
[1724170194590,0.01564918,58899.0,58890.0,0.03405]
[1724170194806,0.01989437,58898.0,58890.0,0.03405]
[1724170195017,0.01564918,58897.0,58890.0,0.03405]
[1724170195226,0.01989437,58896.0,58890.0,0.03405]
[1724170195436,0.01564918,58895.0,58890.0,0.03405]
[1724170195662,0.01564918,58894.0,58890.0,0.03405]
[1724170195868,0.202,58901.0,58890.0,0.03405]
[1724170195869,0.01564918,58893.0,58890.0,0.03405]
[1724170196104,0.01564918,58892.0,58890.0,0.04470016]
[1724170196318,0.202,58901.0,58890.0,0.04470016]
[1724170196319,0.01564918,58891.0,58890.0,0.04470016]
[1724170196534,0.202,58901.0,58892.0,0.03405]
[1724170196751,0.01989996,58900.0,58892.0,0.03405]
[1724170197182,0.01565502,58899.0,58892.0,0.03405]
[1724170197397,0.00424493,58898.0,58892.0,0.03405]
[1724170197610,0.01565502,58897.0,58892.0,0.03405]
[1724170199258,0.01565502,58896.0,58892.0,0.03405]
[1724170199465,0.2,58901.0,58892.0,0.03405]
[1724170199466,0.01565502,58895.0,58892.0,0.03405]
[1724170199674,0.2,58901.0,58892.0,0.03405]
[1724170199882,0.01567229,58900.0,58892.0,0.03405]
[1724170200098,0.001,58897.0,58892.0,0.04005]
[1724170200312,0.01567229,58896.0,58892.0,0.04005]
[1724170200516,0.01567229,58895.0,58892.0,0.03405]
[1724170200730,0.08009989,58909.0,58890.0,0.01065016]
[1724170200731,0.2,58907.0,58896.0,0.44655]
[1724170200948,0.4,58910.0,58896.0,0.44555]
[1724170200949,0.45009989,58910.0,58896.0,0.44555]
[1724170201380,0.01567303,58909.0,58896.0,0.44555]
[1724170201587,0.001,58897.0,58896.0,0.508165]
[1724170201807,0.4,58910.0,58896.0,0.44555]
[1724170202040,0.01567124,58909.0,58896.0,0.44555]
[1724170202247,0.01567124,58908.0,58896.0,0.44555]
[1724170202489,0.01567124,58907.0,58896.0,0.44555]
[1724170202700,0.01567124,58906.0,58896.0,0.44555]
[1724170202915,0.06577113,58905.0,58896.0,0.44555]
[1724170203136,0.01567124,58904.0,58896.0,0.44555]
[1724170203353,0.01567124,58903.0,58896.0,0.44555]
[1724170203568,0.05009989,58904.0,58896.0,0.44555]
[1724170203993,0.01566736,58903.0,58896.0,0.45630999]
[1724170204203,0.05009989,58904.0,58896.0,0.45630999]
[1724170204432,0.051003,58904.0,58896.0,0.45830999]
[1724170204646,0.051003,58904.0,58896.0,0.03405]
[1724170204647,0.65434439,58903.0,58896.0,0.03405]
[1724170204861,0.05009989,58898.0,58890.0,0.5763]
[1724170205077,0.05009989,58898.0,58896.0,0.003]
[1724170205078,0.01566934,58897.0,58896.0,0.003]
[1724170206126,0.09081918,58897.0,58896.0,0.003]
[1724170206542,0.09081918,58897.0,58891.0,0.03405]
[1724170206751,0.05014374,58895.0,58891.0,0.03405]
[1724170207373,0.05014374,58894.0,58891.0,0.03405]
[1724170207807,0.12524973,58900.0,58891.0,0.03405]
[1724170207808,0.05014374,58895.0,58891.0,0.09619412]
[1724170208025,0.05014374,58895.0,58891.0,0.03905]
[1724170208239,0.05014374,58894.0,58891.0,0.03405]
[1724170208444,0.00424513,58895.0,58891.0,0.03405]
[1724170208445,0.05014374,58893.0,58891.0,0.03405]
[1724170208872,0.07514984,58895.0,58891.0,0.03405]
[1724170208873,0.05014374,58894.0,58891.0,0.03405]
[1724170209079,0.05014374,58893.0,58891.0,0.03405]
[1724170209752,0.05014374,58892.0,58891.0,0.03405]
[1724170209993,0.05021402,58892.0,58891.0,0.03405]
[1724170210256,0.05021402,58892.0,58891.0,0.04105]
[1724170210679,0.05021402,58892.0,58891.0,0.04905]
[1724170210895,0.07632103,58894.0,58891.0,0.04905]
[1724170210896,0.07632103,58893.0,58891.0,0.04905]
[1724170211109,0.05022943,58892.0,58891.0,0.03405]
[1724170211316,0.07632103,58893.0,58891.0,0.03405]
[1724170211543,0.07632103,58893.0,58892.0,0.102143]
[1724170211544,0.07532103,58893.0,58892.0,0.102143]
[1724170211754,0.07532103,58893.0,58892.0,0.710643]
[1724170211965,0.05024142,58896.0,58895.0,0.42125]
[1724170212177,0.10042804,58899.0,58895.0,0.42125]
[1724170212178,0.05024142,58899.0,58895.0,0.42125]
[1724170212390,0.05024142,58900.0,58897.0,0.03405]
[1724170212600,0.05024142,58899.0,58897.0,0.03405]
[1724170213871,0.00090311,58904.0,58897.0,0.03405]
[1724170213872,0.05024142,58898.0,58897.0,0.03405]
[1724170214775,0.05024142,58898.0,58895.0,0.3872]
[1724170214776,0.3668688,58898.0,58896.0,0.03405]
[1724170215004,0.3668688,58898.0,58897.0,0.04205]
[1724170215005,0.12553505,58898.0,58897.0,0.04205]
[1724170215215,0.12553505,58898.0,58897.0,0.03405]
[1724170215216,0.01567516,58898.0,58897.0,0.03405]
[1724170215443,0.27902378,58898.0,58897.0,0.03405]
[1724170215651,0.27902378,58898.0,58897.0,0.04405]
[1724170215652,0.38997831,58898.0,58897.0,0.04405]
[1724170215870,0.26434862,58898.0,58897.0,0.04405]
[1724170216073,0.40565388,58898.0,58897.0,0.04405]
[1724170216283,0.28002419,58898.0,58897.0,0.04405]
[1724170216490,0.26434862,58898.0,58897.0,0.04405]
[1724170216699,0.28002593,58898.0,58897.0,0.04405]
[1724170217364,0.27902593,58898.0,58897.0,0.03405]
[1724170217615,0.14135282,58898.0,58897.0,0.057285]
[1724170217825,0.001,58898.0,58897.0,0.65305]
[1724170218034,0.05027565,58899.0,58897.0,0.64505]
[1724170218243,0.05027565,58901.0,58899.0,0.03305]
[1724170218670,0.07541383,58903.0,58899.0,0.03305]
[1724170218671,0.05027565,58903.0,58899.0,0.03305]
[1724170218878,0.00090311,58904.0,58902.0,0.43085]
[1724170219094,0.00090311,58904.0,58903.0,0.71255]
[1724170219325,0.12657862,58912.0,58903.0,0.71255]
[1724170219326,0.00090311,58912.0,58904.0,0.5805]
[1724170219549,0.00090311,58912.0,58907.0,0.03205]
[1724170219832,0.00090311,58912.0,58909.0,0.03205]
[1724170220057,0.00090311,58912.0,58911.0,0.61005]
[1724170220284,0.00090311,58912.0,58911.0,0.63305]
[1724170220513,0.00090311,58922.0,58913.0,0.03305]
[1724170220717,0.00090311,58922.0,58914.0,0.63220977]
[1724170220928,0.00090311,58922.0,58917.0,0.03005]
[1724170221143,0.00090311,58922.0,58920.0,0.5967]
[1724170221350,0.00090311,58922.0,58921.0,0.499]
[1724170221559,0.00090311,58922.0,58921.0,0.55005]
[1724170221773,0.00190311,58922.0,58921.0,0.73355]
[1724170221984,0.00190311,58922.0,58921.0,0.806905]
[1724170222641,0.00090311,58922.0,58921.0,0.73355]
[1724170223490,0.00090311,58922.0,58921.0,0.74440752]
[1724170223724,0.00090311,58922.0,58921.0,0.72140752]
[1724170223931,0.00090311,58922.0,58921.0,0.03890752]
[1724170224141,0.00090311,58922.0,58916.0,0.21755]
[1724170224346,0.00514636,58922.0,58920.0,0.014]
[1724170224773,0.00090311,58922.0,58918.0,0.03405]
[1724170225027,0.00090311,58922.0,58912.0,1.79]
[1724170225028,0.00514634,58922.0,58921.0,0.01]
[1724170225237,0.02083627,58922.0,58916.0,0.03405]
[1724170225461,0.00514634,58922.0,58916.0,0.03405]
[1724170225667,0.01568854,58921.0,58920.0,0.005]
[1724170225872,0.01568854,58921.0,58916.0,0.03405]
[1724170226078,0.00424345,58920.0,58916.0,0.03405]
[1724170226532,0.00424345,58920.0,58912.0,1.80096321]
[1724170226533,0.3774,58916.0,58912.0,1.79]
[1724170226761,0.07021906,58915.0,58912.0,1.79]
[1724170226971,0.3774,58916.0,58912.0,1.79]
[1724170226972,0.09111952,58914.0,58912.0,1.79]
[1724170227181,0.47797733,58916.0,58912.0,1.79]
[1724170227182,0.05011232,58915.0,58913.0,0.03405]
[1724170227391,0.01568052,58914.0,58913.0,0.03405]
[1724170228636,0.01568052,58914.0,58913.0,0.03905]
[1724170229047,0.01568052,58914.0,58913.0,0.005]
[1724170229464,0.05435929,58915.0,58913.0,0.005]
[1724170229688,0.01669462,58914.0,58913.0,0.005]
[1724170229942,0.83748856,58914.0,58913.0,0.005]
[1724170230146,0.83948856,58914.0,58913.0,0.005]
[1724170230355,0.96477756,58914.0,58913.0,0.005]
[1724170230578,0.83948856,58914.0,58913.0,0.005]
[1724170230788,0.83948856,58914.0,58912.0,1.79]
[1724170230789,1.053579,58913.0,58912.0,1.79]
[1724170231001,2.50586568,58913.0,58912.0,1.79]
[1724170231625,2.24478302,58913.0,58912.0,1.79]
[1724170232403,2.24978302,58913.0,58912.0,1.79]
[1724170232667,1.97819702,58913.0,58912.0,1.79]
[1724170232862,1.57081802,58913.0,58912.0,1.79]
[1724170233042,1.70661102,58913.0,58912.0,1.79]
[1724170233453,1.97819702,58913.0,58912.0,1.79]
[1724170233656,1.9625024,58913.0,58912.0,1.79]
[1724170233878,1.70661766,58913.0,58912.0,1.79]
[1724170234076,1.97820366,58913.0,58912.0,1.79]
[1724170234283,1.97320366,58913.0,58912.0,1.79]
[1724170234714,1.97820366,58913.0,58912.0,1.79]
[1724170235125,1.97720366,58913.0,58912.0,1.79]
[1724170235321,1.97820366,58913.0,58912.0,1.79]
[1724170235524,1.96028908,58913.0,58912.0,1.79]
[1724170235702,1.55091008,58913.0,58912.0,1.79]
[1724170235939,1.95091008,58913.0,58912.0,1.79]
[1724170236140,1.92431606,58913.0,58912.0,1.79]
[1724170236340,1.75504143,58913.0,58912.0,1.79]
[1724170236941,1.92546515,58913.0,58912.0,1.79]
[1724170237102,1.56764715,58913.0,58912.0,1.79]
[1724170237306,1.57264715,58913.0,58912.0,1.79]
[1724170237510,1.57364715,58913.0,58912.0,1.79]
[1724170237715,1.57264715,58913.0,58912.0,1.79]
[1724170237917,1.57364715,58913.0,58912.0,1.79]
[1724170238336,1.57264715,58913.0,58912.0,1.79]
[1724170238543,1.42218274,58913.0,58912.0,1.79]
[1724170240010,1.32218274,58913.0,58912.0,1.79]
[1724170240688,1.44762399,58913.0,58912.0,1.79]
[1724170240901,1.32218274,58913.0,58912.0,1.79]
[1724170241147,1.44763189,58913.0,58912.0,1.79]
[1724170241404,1.44263189,58913.0,58912.0,1.79]
[1724170241571,1.44763189,58913.0,58912.0,1.79]
[1724170241780,1.45212693,58913.0,58912.0,1.79]
[1724170241997,1.46346951,58913.0,58912.0,1.79]
[1724170242198,2.22419772,58913.0,58912.0,1.79]
[1724170242394,2.63484684,58913.0,58912.0,1.79]
[1724170242624,2.46548878,58913.0,58912.0,1.79]
[1724170244226,2.91129041,58913.0,58912.0,0.72641117]
[1724170244430,2.91129041,58913.0,58912.0,0.000821]
[1724170244648,1.314162,58896.0,58895.0,0.000821]
[1724170244879,1.68213517,58896.0,58895.0,0.000821]
[1724170245092,1.69240391,58896.0,58895.0,0.000821]
[1724170245358,1.96406891,58896.0,58895.0,0.000821]
[1724170245563,1.69240391,58896.0,58895.0,0.000821]
[1724170246213,1.39903922,58896.0,58895.0,0.000821]
[1724170246441,1.65500296,58896.0,58895.0,0.000821]
[1724170246674,1.67069369,58896.0,58895.0,0.000821]
[1724170247114,1.94635869,58896.0,58895.0,0.000821]
[1724170247331,1.96535869,58896.0,58895.0,0.000821]
[1724170247553,2.26658094,58896.0,58895.0,0.000821]
[1724170247803,2.54224594,58896.0,58895.0,0.000821]
[1724170248020,2.53824594,58896.0,58895.0,0.000821]
[1724170248234,2.54224594,58896.0,58895.0,0.000821]
[1724170249362,2.54224594,58896.0,58863.0,0.49229154]
[1724170249363,0.635,58873.0,58854.0,0.00821]
[1724170249590,0.635,58873.0,58838.0,0.04491246]
[1724170249591,0.135964,58839.0,58838.0,0.04491246]
[1724170249797,2.53399434,58839.0,58838.0,0.01247648]
[1724170250017,2.07689626,58839.0,58838.0,0.01247648]
[1724170250236,0.75623899,58839.0,58838.0,0.01247648]
[1724170250448,0.75623899,58839.0,58817.0,0.0473449]
[1724170250449,0.75623899,58839.0,58800.0,0.088]
[1724170250658,0.75623899,58839.0,58749.0,0.0012524]
[1724170250659,6e-07,58795.0,58749.0,0.0012524]
[1724170250876,6e-07,58795.0,58715.0,0.0005106]
[1724170250877,0.03,58721.0,58715.0,0.0005106]
[1724170251087,0.4,58743.0,58715.0,0.0005106]
[1724170251088,0.2,58726.0,58715.0,0.0005106]
[1724170251298,0.001,58743.0,58715.0,0.0005106]
[1724170251299,0.00935826,58720.0,58716.0,0.1845]
[1724170251514,0.39700964,58758.0,58716.0,0.1845]
[1724170251515,0.03,58745.0,58716.0,0.1845]
[1724170251720,0.1,58750.0,58717.0,0.03405]
[1724170251721,0.1,58746.0,58717.0,0.03405]
[1724170251935,0.64699418,58761.0,58717.0,0.068269]
[1724170251936,0.01548178,58718.0,58717.0,0.068269]
[1724170252146,0.03,58740.0,58718.0,0.0309891]
[1724170252353,0.0111785,58739.0,58718.0,0.1982]
[1724170252561,0.00932815,58738.0,58718.0,0.1982]
[1724170252786,0.39276651,58744.0,58718.0,0.1982]
[1724170252985,0.00774395,58743.0,58718.0,0.1982]
[1724170253207,0.49229154,58761.0,58718.0,0.1982]
[1724170253434,0.49229154,58761.0,58717.0,0.068269]
[1724170253435,0.49229154,58746.0,58720.0,0.03405]
[1724170253651,0.004,58739.0,58726.0,0.03405]
[1724170253866,0.004,58739.0,58730.0,0.03405]
[1724170254084,0.49229154,58761.0,58746.0,0.003]
[1724170254301,0.49229154,58761.0,58747.0,0.4145]
[1724170254302,0.2,58759.0,58747.0,0.4145]
[1724170254519,0.001,58780.0,58746.0,0.003]
[1724170254520,0.03,58782.0,58757.0,0.001]
[1724170254751,0.49229154,58776.0,58762.0,0.002]
[1724170254968,0.49229154,58776.0,58759.0,0.1]
[1724170254969,0.23,58773.0,58759.0,0.1]
[1724170255453,0.03,58780.0,58760.0,0.023]
[1724170255663,0.03,58780.0,58760.0,0.025]
[1724170255868,0.03,58780.0,58761.0,0.07122]
[1724170256080,0.001,58784.0,58760.0,0.023]
[1724170256081,0.001,58772.0,58762.0,0.023]
[1724170256289,0.001,58772.0,58760.0,0.023]
[1724170256492,0.03,58774.0,58760.0,0.023]
[1724170257539,0.004,58780.0,58760.0,0.023]
[1724170257540,0.035,58780.0,58760.0,0.023]
[1724170257742,0.001,58771.0,58760.0,0.023]
[1724170257996,0.001,58776.0,58760.0,0.023]
[1724170258201,0.034,58780.0,58760.0,0.023]
[1724170258202,0.001,58778.0,58760.0,0.023]
[1724170258622,0.03,58780.0,58760.0,0.023]
[1724170258623,0.001,58779.0,58760.0,0.023]
[1724170258836,0.001,58778.0,58760.0,0.023]
[1724170259669,0.003,58774.0,58760.0,0.023]
[1724170259880,0.001,58778.0,58760.0,0.023]
[1724170260094,0.001,58778.0,58761.0,0.01882921]
[1724170260308,0.001,58778.0,58763.0,0.4076]
[1724170260309,0.003,58778.0,58763.0,0.4076]
[1724170260558,0.2,58788.0,58764.0,0.123]
[1724170260559,0.00425303,58787.0,58764.0,0.123]
[1724170260773,0.001,58778.0,58765.0,0.03405]
[1724170260995,0.001,58774.0,58765.0,0.03405]
[1724170261232,0.00425303,58787.0,58763.0,0.4076]
[1724170261233,0.031,58766.0,58763.0,0.4076]
[1724170261443,0.031,58766.0,58758.0,0.1795]
[1724170261444,0.001,58759.0,58758.0,0.1795]
[1724170261664,0.031,58759.0,58758.0,0.1795]
[1724170262305,0.27222,58776.0,58758.0,0.1795]
[1724170262306,0.03,58769.0,58758.0,0.1795]
[1724170262523,0.001,58768.0,58758.0,0.1795]
[1724170262733,0.49229154,58775.0,58758.0,0.1795]
[1724170262734,0.001,58775.0,58758.0,0.1795]
[1724170262941,0.001,58764.0,58758.0,0.1795]
[1724170263369,0.001,58759.0,58758.0,0.1795]
[1724170263608,0.001,58748.0,58747.0,0.1908]
[1724170264047,0.2,58758.0,58747.0,0.1908]
[1724170264297,0.001,58757.0,58747.0,0.1908]
[1724170264474,0.001,58760.0,58758.0,0.001]
[1724170264689,0.001,58759.0,58758.0,0.001]
[1724170264909,0.001,58759.0,58748.0,0.3782]
[1724170264910,0.001,58754.0,58748.0,0.3782]
[1724170265126,0.4,58773.0,58706.0,0.141271]
[1724170265127,0.03,58741.0,58740.0,0.3896]
[1724170265340,0.49229154,58751.0,58740.0,0.3896]
[1724170265341,0.001,58743.0,58740.0,0.3896]
[1724170265567,0.3444,58762.0,58740.0,0.3896]
[1724170265568,0.001,58755.0,58740.0,0.3896]
[1724170265774,0.2,58760.0,58740.0,0.3896]
[1724170265775,0.03,58745.0,58740.0,0.3896]
[1724170266215,0.001,58745.0,58740.0,0.3896]
[1724170266430,0.03,58752.0,58740.0,0.3896]
[1724170266649,0.001,58748.0,58747.0,0.006]
[1724170266879,0.03,58752.0,58741.0,0.1]
[1724170267084,0.001,58750.0,58741.0,0.1]
[1724170267289,0.03,58752.0,58741.0,0.1]
[1724170267290,0.001,58749.0,58741.0,0.1]
[1724170267500,0.001,58749.0,58742.0,0.023]
[1724170267709,0.002,58769.0,58742.0,0.023]
[1724170267710,0.001,58765.0,58742.0,0.09309]
[1724170267929,0.001,58748.0,58747.0,0.006]
[1724170268147,0.001,58748.0,58747.0,0.029]
[1724170268363,0.001,58760.0,58747.0,0.023]
[1724170268567,0.001,58749.0,58746.0,0.023]
[1724170268781,0.03,58766.0,58746.0,0.023]
[1724170268782,0.001,58764.0,58746.0,0.023]
[1724170269003,0.001,58764.0,58749.0,0.002]
[1724170269205,0.001,58764.0,58750.0,0.4001]
[1724170269424,0.2,58772.0,58750.0,0.4001]
[1724170269425,0.001,58772.0,58752.0,0.2008]
[1724170269639,0.001,58764.0,58754.0,0.4001]
[1724170269838,0.03,58771.0,58754.0,0.4001]
[1724170269839,0.001,58767.0,58755.0,0.023]
[1724170270061,0.001,58760.0,58755.0,0.123]
[1724170270279,0.03,58771.0,58755.0,0.123]
[1724170270280,0.001,58767.0,58755.0,0.122]
[1724170270486,0.001,58774.0,58755.0,0.122]
[1724170270782,0.0009053,58787.0,58757.0,0.3902]
[1724170270783,0.001,58782.0,58757.0,0.3902]
[1724170270998,0.001,58774.0,58758.0,0.1]
[1724170271221,0.001,58771.0,58758.0,0.1]
[1724170271432,0.001,58764.0,58759.0,0.03405]
[1724170271646,0.03,58784.0,58761.0,0.42695]
[1724170271647,0.001,58782.0,58761.0,0.42695]
[1724170271854,0.49229154,58776.0,58763.0,0.03405]
[1724170272061,0.03,58784.0,58763.0,0.03405]
[1724170272062,0.001,58775.0,58763.0,0.03405]
[1724170272264,0.001,58778.0,58763.0,0.03405]
[1724170272476,0.001,58783.0,58765.0,0.03405]
[1724170272678,0.001,58778.0,58767.0,0.03405]
[1724170272893,0.001,58778.0,58769.0,0.03405]
[1724170273103,0.001,58778.0,58771.0,0.03405]
[1724170273327,0.03,58784.0,58772.0,0.023]
[1724170273328,0.001,58781.0,58772.0,0.023]
[1724170273545,0.001,58781.0,58773.0,0.03405]
[1724170273752,0.001,58781.0,58775.0,0.03405]
[1724170273969,0.001,58781.0,58774.0,0.023]
[1724170273970,0.001,58780.0,58779.0,0.03405]
[1724170274177,0.03,58784.0,58778.0,0.4154]
[1724170274178,0.001,58779.0,58778.0,0.34783612]
[1724170274385,0.03,58784.0,58779.0,0.03405]
[1724170274386,0.001,58780.0,58779.0,0.03405]
[1724170275005,0.001,58781.0,58779.0,0.03405]
[1724170275222,0.002,58781.0,58779.0,0.03405]
[1724170275450,0.001,58781.0,58779.0,0.03405]
[1724170275659,0.001,58781.0,58780.0,0.05705]
[1724170276062,0.002,58781.0,58780.0,0.05705]
[1724170276286,0.001,58781.0,58780.0,0.03405]
[1724170276491,0.001,58781.0,58778.0,0.34783612]
[1724170276492,0.001,58771.0,58769.0,0.03405]
[1724170276700,0.001,58771.0,58770.0,0.03405]
[1724170276903,0.001,58775.0,58770.0,0.03405]
[1724170277114,0.03,58785.0,58770.0,0.03405]
[1724170277115,0.001,58776.0,58770.0,0.03405]
[1724170277354,0.001,58773.0,58770.0,0.03405]
[1724170277580,0.001,58773.0,58767.0,0.1]
[1724170277581,0.001,58774.0,58771.0,0.03405]
[1724170277796,0.001,58774.0,58771.0,0.03305]
[1724170278011,0.001,58778.0,58773.0,0.03205]
[1724170278259,0.001,58778.0,58774.0,0.05505]
[1724170278473,0.03,58785.0,58774.0,0.03205]
[1724170278474,0.001,58780.0,58774.0,0.03205]
[1724170278675,0.001,58780.0,58772.0,0.023]
[1724170278676,0.001,58780.0,58776.0,0.03205]
[1724170278910,0.001,58780.0,58772.0,0.023]
[1724170278911,0.001,58782.0,58778.0,0.03205]
[1724170279119,0.01569273,58781.0,58778.0,0.03205]
[1724170279339,0.001,58781.0,58780.0,0.03205]
[1724170279556,0.001,58781.0,58776.0,0.3981]
[1724170279557,0.001,58777.0,58776.0,0.3981]
[1724170279762,0.001,58778.0,58776.0,0.43215]
[1724170279964,0.001,58777.0,58776.0,0.03405]
[1724170280389,0.01669259,58777.0,58776.0,0.47254017]
[1724170280833,0.01769259,58777.0,58776.0,0.48354017]
[1724170281657,0.01669259,58777.0,58776.0,0.50654017]
[1724170282061,0.01769259,58777.0,58776.0,0.50654017]
[1724170282263,0.01669259,58777.0,58776.0,0.50654017]
[1724170282909,0.0009053,58787.0,58778.0,0.03405]
[1724170283116,0.0009053,58787.0,58784.0,0.002]
[1724170283117,0.01570065,58786.0,58784.0,0.002]
[1724170283353,0.0009053,58787.0,58784.0,0.002]
[1724170283354,0.0009053,58787.0,58785.0,0.03405]
[1724170283563,0.0009053,58787.0,58785.0,0.13405]
[1724170283969,0.0009053,58787.0,58786.0,0.05705]
[1724170284182,0.001,58802.0,58786.0,0.25425]
[1724170284390,0.2,58810.0,58788.0,0.03605]
[1724170284391,0.01570353,58801.0,58788.0,0.03605]
[1724170284623,0.001,58797.0,58788.0,0.13405]
[1724170284819,0.2,58816.0,58788.0,0.13405]
[1724170284820,0.001,58794.0,58788.0,0.13405]
[1724170285020,0.001,58795.0,58788.0,0.13405]
[1724170285229,0.001,58789.0,58788.0,0.13405]
[1724170285862,0.001,58795.0,58788.0,0.13405]
[1724170286116,0.001,58789.0,58788.0,0.13405]
[1724170286437,0.001,58795.0,58788.0,0.15705]
[1724170286704,0.03,58806.0,58788.0,0.14805]
[1724170286705,0.001,58797.0,58788.0,0.14805]
[1724170286911,0.001,58802.0,58790.0,0.03405]
[1724170287125,0.03,58812.0,58789.0,0.023]
[1724170287126,0.001,58800.0,58792.0,0.03405]
[1724170287341,0.001,58793.0,58792.0,0.03405]
[1724170287551,0.001,58799.0,58792.0,0.05705]
[1724170287777,0.001,58798.0,58792.0,0.03405]
[1724170287993,0.001,58798.0,58794.0,0.03405]
[1724170288219,0.03,58812.0,58794.0,0.03405]
[1724170288220,0.001,58799.0,58794.0,0.03405]
[1724170288438,0.001,58799.0,58788.0,0.1]
[1724170288439,0.001,58797.0,58796.0,0.03405]
[1724170288881,0.01672177,58797.0,58796.0,0.03405]
[1724170289090,0.01572177,58797.0,58796.0,0.03405]
[1724170289276,0.001,58799.0,58796.0,0.03405]
[1724170289516,0.001,58799.0,58794.0,0.43849017]
[1724170289517,0.001,58799.0,58797.0,0.03405]
[1724170289698,0.06089799,58819.0,58797.0,0.03405]
[1724170289699,0.001,58804.0,58797.0,0.03405]
[1724170289896,0.001,58804.0,58795.0,0.1]
[1724170289897,0.01572498,58803.0,58799.0,0.03405]
[1724170290096,0.001,58805.0,58798.0,0.023]
[1724170290097,0.001,58805.0,58801.0,0.03405]
[1724170290431,0.001,58805.0,58800.0,0.023]
[1724170290432,0.49229154,58816.0,58802.0,0.61675]
[1724170290642,0.03,58819.0,58804.0,0.03405]
[1724170290643,0.01572499,58815.0,58804.0,0.03405]
[1724170290857,0.001,58812.0,58806.0,0.03405]
[1724170291073,0.001,58813.0,58808.0,0.03405]
[1724170291492,0.001,58813.0,58805.0,0.023]
[1724170291493,0.001,58813.0,58810.0,0.03405]
[1724170291675,0.03,58826.0,58810.0,0.03405]
[1724170291915,0.03,58826.0,58805.0,0.025]
[1724170291916,0.01573382,58825.0,58814.0,0.03405]
[1724170292122,0.03,58826.0,58814.0,0.03405]
[1724170292123,0.001,58826.0,58816.0,0.03405]
[1724170292544,0.03,58837.0,58818.0,0.03405]
[1724170292758,0.001,58827.0,58820.0,0.03405]
[1724170292966,0.001,58821.0,58820.0,0.03405]
[1724170293169,0.001,58823.0,58820.0,0.05705]
[1724170293348,0.001,58823.0,58820.0,0.03405]
[1724170293594,0.001,58827.0,58822.0,0.03405]
[1724170293804,0.03,58837.0,58824.0,0.03405]
[1724170293805,0.001,58831.0,58824.0,0.03405]
[1724170294006,0.001,58831.0,58826.0,0.03405]
[1724170294206,0.03,58837.0,58826.0,0.03405]
[1724170294207,0.001,58827.0,58826.0,0.03405]
[1724170294419,0.001,58827.0,58826.0,0.05705]
[1724170294650,0.001,58830.0,58826.0,0.05705]
[1724170294865,0.03,58844.0,58828.0,0.03405]
[1724170295072,0.03,58844.0,58827.0,0.2031]
[1724170295073,0.01572621,58843.0,58830.0,0.03405]
[1724170295279,0.03,58844.0,58828.0,0.1]
[1724170295280,0.01572621,58842.0,58828.0,0.1]
[1724170295486,0.03,58844.0,58831.0,0.05705]
[1724170295705,0.00904201,58846.0,58831.0,0.05705]
[1724170295912,0.001,58840.0,58831.0,0.05705]
[1724170296119,0.00904201,58846.0,58833.0,0.03405]
[1724170296328,0.00904201,58846.0,58835.0,0.03405]
[1724170296531,0.00904201,58846.0,58834.0,0.023]